bitfinex/quotes_BTCUSD_20220202
["timestamp","ask_amount","ask_price","bid_price","bid_amount"]
[1643799993824,0.30164414,38557.0,38551.0,0.34886993]
[1643799994026,0.30164414,38557.0,38552.0,0.21567549]
[1643799994323,0.30164414,38557.0,38551.0,0.32821189]
[1643799994523,0.30164414,38557.0,38552.0,0.21806803]
[1643799994722,0.30164414,38557.0,38552.0,0.26817887]
[1643799994924,0.30164414,38557.0,38552.0,0.26677364]
[1643799995226,0.30164414,38557.0,38552.0,0.05011084]
[1643799995826,0.30164414,38557.0,38552.0,0.26700943]
[1643799996024,0.30164414,38557.0,38552.0,0.05011084]
[1643799996224,0.30164414,38557.0,38552.0,0.00011084]
[1643799996423,0.30164414,38557.0,38551.0,0.32810105]
[1643799997025,0.30164414,38557.0,38551.0,0.32821189]
[1643799997478,0.30164414,38557.0,38551.0,0.32810105]
[1643799998077,0.30164414,38557.0,38551.0,0.32821189]
[1643799998277,0.36650205,38557.0,38551.0,0.32821189]
[1643799998477,0.30164414,38557.0,38551.0,0.32821189]
[1643800003625,0.30157291,38557.0,38551.0,0.32821189]
[1643800004425,0.30113326,38557.0,38551.0,0.32821189]
[1643800004625,0.30113326,38557.0,38551.0,0.32810105]
[1643800005276,0.30113326,38557.0,38551.0,0.32821189]
[1643800007980,0.36599322,38557.0,38551.0,0.32821189]
[1643800008184,0.06486,38555.0,38551.0,0.32810105]
[1643800008624,0.06486,38555.0,38550.0,0.32931785]
[1643800009225,0.06486,38555.0,38550.0,0.32821189]
[1643800009426,0.06486,38555.0,38550.0,0.32942865]
[1643800009826,0.06486,38555.0,38550.0,0.32931781]
[1643800010229,0.06486,38555.0,38550.0,0.32887838]
[1643800010428,0.06486,38555.0,38550.0,0.32766162]
[1643800010632,0.06486,38555.0,38550.0,0.32887838]
[1643800011632,0.06486,38555.0,38550.0,0.32766162]
[1643800011831,0.06486,38555.0,38550.0,0.32898922]
[1643800012677,0.06486,38555.0,38550.0,0.0013276]
[1643800012878,0.06486,38555.0,38550.0,0.00011084]
[1643800013080,0.06486,38555.0,38550.0,0.00121676]
[1643800013483,0.06486,38555.0,38550.0,0.0013276]
[1643800013879,0.06486,38555.0,38550.0,0.0661846]
[1643800014079,0.06486,38555.0,38550.0,0.06496784]
[1643800014279,0.06486,38555.0,38550.0,0.06607376]
[1643800014480,0.06486,38555.0,38550.0,0.00121676]
[1643800014980,0.349323,38554.0,38550.0,0.00121676]
[1643800015179,0.064861,38553.0,38549.0,0.00011084]
[1643800015380,0.064861,38553.0,38550.0,0.00121676]
[1643800016426,0.26319876,38552.0,38549.0,0.00011084]
[1643800016627,0.52029634,38552.0,38550.0,0.00121677]
[1643800016827,0.25,38551.0,38550.0,0.00121677]
[1643800017626,0.25,38551.0,38548.0,0.00011084]
[1643800017827,0.25,38551.0,38549.0,0.00121679]
[1643800018828,0.25,38551.0,38548.0,0.00011084]
[1643800019029,0.25,38551.0,38548.0,0.00104679]
[1643800019428,0.25,38551.0,38548.0,0.00115763]
[1643800019876,0.24845668,38550.0,38548.0,0.00115763]
[1643800020076,0.25,38551.0,38547.0,0.00011084]
[1643800020477,0.314866,38551.0,38546.0,0.32826972]
[1643800020681,0.314866,38551.0,38545.0,0.00011084]
[1643800020682,0.30881694,38550.0,38545.0,0.00011084]
[1643800020877,0.349323,38549.0,38545.0,0.00011084]
[1643800021077,0.0522,38548.0,38541.0,0.01]
[1643800021478,0.0522,38548.0,38545.0,0.00071727]
[1643800021481,0.43042444,38547.0,38545.0,0.00071727]
[1643800021678,0.32323502,38546.0,38545.0,0.00071727]
[1643800021877,0.50347902,38546.0,38545.0,0.00071727]
[1643800022479,0.56835802,38546.0,38542.0,0.00011084]
[1643800022678,0.349208,38545.0,38544.0,0.0007173]
[1643800022880,0.66857495,38545.0,38544.0,0.0007173]
[1643800023726,1.03921915,38545.0,38543.0,0.00132871]
[1643800023928,0.25392515,38544.0,38543.0,0.00132871]
[1643800024128,0.66235835,38544.0,38543.0,0.00132871]
[1643800024327,0.48636915,38544.0,38543.0,0.00132871]
[1643800024926,0.55125315,38544.0,38542.0,0.00143957]
[1643800025127,0.61696105,38543.0,38542.0,0.00132873]
[1643800025327,0.66916105,38543.0,38542.0,0.00132873]
[1643800025628,1.00519697,38543.0,38542.0,0.00132873]
[1643800026027,0.71916105,38543.0,38541.0,0.01011084]
[1643800026327,0.72650853,38542.0,38541.0,0.01143958]
[1643800026528,0.95895253,38542.0,38541.0,0.01122869]
[1643800026727,1.13494173,38542.0,38541.0,0.01122869]
[1643800026927,0.95895253,38542.0,38541.0,0.01122869]
[1643800027127,1.13494173,38542.0,38541.0,0.01122869]
[1643800027378,0.95895253,38542.0,38541.0,0.00989995]
[1643800027677,1.18494173,38542.0,38541.0,0.00989995]
[1643800027881,1.10895253,38542.0,38541.0,0.00989995]
[1643800028077,1.28494173,38542.0,38541.0,0.00989995]
[1643800029278,1.33494173,38542.0,38541.0,0.00989995]
[1643800029677,1.28494173,38542.0,38541.0,0.00989995]
[1643800037983,1.33494173,38542.0,38541.0,0.00989995]
[1643800042874,1.28494173,38542.0,38541.0,0.00989995]
[1643800044476,1.0233192,38542.0,38541.0,0.00989995]
[1643800044879,1.0733192,38542.0,38541.0,0.00989995]
[1643800045778,1.0233192,38542.0,38541.0,0.00989995]
[1643800046230,0.9233192,38542.0,38541.0,0.00989995]
[1643800046431,0.74733,38542.0,38541.0,0.00989995]
[1643800050380,0.69733,38542.0,38541.0,0.00989995]
[1643800050580,0.74733,38542.0,38541.0,0.00989995]
[1643800055735,1.04733,38542.0,38541.0,0.00989995]
[1643800056134,0.99513,38542.0,38541.0,0.009209]
[1643800056335,1.1711192,38542.0,38541.0,0.009209]
[1643800057988,0.8711192,38542.0,38541.0,0.009209]
[1643800058383,0.69513,38542.0,38541.0,0.009209]
[1643800058585,1.14352865,38542.0,38541.0,0.009209]
[1643800058984,1.31951785,38542.0,38541.0,0.009209]
[1643800059386,1.31951785,38542.0,38534.0,0.00531585]
[1643800059387,0.064888,38540.0,38534.0,0.00531585]
[1643800059589,0.064889,38537.0,38528.0,0.0011]
[1643800059788,0.7,38535.0,38528.0,0.0011]
[1643800059987,0.232444,38536.0,38528.0,0.0011]
[1643800059988,0.91210821,38533.0,38528.0,0.0011]
[1643800060186,1.14455221,38533.0,38528.0,0.0011]
[1643800060387,1.61270857,38533.0,38528.0,0.0011]
[1643800060590,1.92483831,38533.0,38528.0,0.0011]
[1643800060787,2.10082751,38533.0,38528.0,0.0011]
[1643800061039,1.83563364,38533.0,38528.0,0.0011]
[1643800061233,1.18563364,38533.0,38528.0,0.0011]
[1643800061632,0.50536907,38533.0,38528.0,0.0011]
[1643800061833,0.55155327,38533.0,38528.0,0.0011]
[1643800062032,0.37556407,38533.0,38528.0,0.0011]
[1643800062233,0.37556407,38533.0,38531.0,0.00442727]
[1643800062434,0.62556407,38533.0,38531.0,0.00442727]
[1643800063035,0.37556407,38533.0,38531.0,0.00442727]
[1643800063338,0.37556407,38533.0,38531.0,0.0031]
[1643800063535,0.37556407,38533.0,38531.0,0.00442727]
[1643800063536,0.67556407,38533.0,38531.0,0.00442727]
[1643800064337,0.62336407,38533.0,38531.0,0.0031]
[1643800064536,0.79935327,38533.0,38531.0,0.00442727]
[1643800064785,0.62336407,38533.0,38531.0,0.00442727]
[1643800065484,0.27336407,38533.0,38531.0,0.00442727]
[1643800065685,0.27336407,38533.0,38531.0,0.0031]
[1643800065988,0.27336407,38533.0,38531.0,0.00442727]
[1643800066786,0.32336407,38533.0,38531.0,0.0031]
[1643800066986,0.57604861,38533.0,38531.0,0.00442727]
[1643800067587,0.32336407,38533.0,38531.0,0.00442727]
[1643800067986,0.32336407,38533.0,38531.0,0.0031]
[1643800067987,0.58124959,38533.0,38531.0,0.0031]
[1643800068187,0.58124959,38533.0,38531.0,0.00442727]
[1643800068386,0.83124959,38533.0,38531.0,0.00442727]
[1643800068645,1.00723879,38533.0,38531.0,0.00442727]
[1643800069043,0.75723879,38533.0,38531.0,0.00442727]
[1643800069241,0.75723879,38533.0,38531.0,0.0031]
[1643800069541,0.75723879,38533.0,38531.0,0.00442727]
[1643800069542,0.32336407,38533.0,38531.0,0.00442727]
[1643800070343,0.57336407,38533.0,38531.0,0.0031]
[1643800070542,0.57336407,38533.0,38531.0,0.00442727]
[1643800071246,0.82380418,38533.0,38531.0,0.00442727]
[1643800071642,0.82380418,38533.0,38531.0,0.0031]
[1643800071643,0.99979338,38533.0,38531.0,0.0031]
[1643800071842,0.74935327,38533.0,38531.0,0.00442727]
[1643800072281,0.57336407,38533.0,38531.0,0.00442727]
[1643800072482,0.32336407,38533.0,38531.0,0.00442727]
[1643800072883,0.32336407,38533.0,38531.0,0.0031]
[1643800073082,0.32336407,38533.0,38531.0,0.00442727]
[1643800073283,0.57336407,38533.0,38531.0,0.00442727]
[1643800073886,0.52336407,38533.0,38531.0,0.00442727]
[1643800074083,0.52336407,38533.0,38531.0,0.0031]
[1643800074284,0.52336407,38533.0,38531.0,0.00442727]
[1643800074484,0.52336407,38533.0,38531.0,0.00453449]
[1643800074685,0.77799871,38533.0,38531.0,0.00453449]
[1643800074885,1.00398791,38533.0,38531.0,0.00453449]
[1643800075286,1.00398791,38533.0,38531.0,0.00320722]
[1643800075486,1.00398791,38533.0,38531.0,0.00453449]
[1643800076230,0.997253,38533.0,38531.0,0.00453449]
[1643800076435,0.997253,38533.0,38531.0,0.00320722]
[1643800076630,0.997253,38533.0,38531.0,0.00453449]
[1643800077231,0.74935327,38533.0,38531.0,0.00453449]
[1643800077630,0.57336407,38533.0,38531.0,0.00320722]
[1643800077831,0.57336407,38533.0,38531.0,0.00453449]
[1643800078233,0.82160537,38533.0,38531.0,0.00453449]
[1643800078832,0.99759457,38533.0,38531.0,0.00320722]
[1643800079035,0.99759457,38533.0,38531.0,0.00453449]
[1643800080090,0.99759457,38533.0,38531.0,0.00320722]
[1643800080290,0.99759457,38533.0,38531.0,0.00453449]
[1643800080491,0.74935327,38533.0,38531.0,0.00453449]
[1643800080890,0.57336407,38533.0,38531.0,0.00453449]
[1643800081091,0.32336407,38533.0,38531.0,0.00453449]
[1643800081293,0.32336407,38533.0,38531.0,0.00320722]
[1643800081492,0.99167766,38533.0,38531.0,0.00453449]
[1643800081695,0.99208476,38533.0,38531.0,0.00453449]
[1643800081992,1.16807396,38533.0,38531.0,0.00453449]
[1643800082193,0.91935327,38533.0,38531.0,0.00453449]
[1643800082392,0.91935327,38533.0,38531.0,0.00320722]
[1643800082592,0.74336407,38533.0,38531.0,0.00453449]
[1643800082792,0.54320395,38533.0,38531.0,0.00453449]
[1643800083193,0.8175441,38533.0,38531.0,0.00453449]
[1643800083393,0.9935333,38533.0,38531.0,0.00453449]
[1643800083633,0.8175441,38533.0,38531.0,0.00320722]
[1643800083831,0.9935333,38533.0,38531.0,0.00453449]
[1643800084032,0.8175441,38533.0,38531.0,0.00453449]
[1643800084232,0.8675441,38533.0,38531.0,0.00453449]
[1643800084830,0.8675441,38533.0,38531.0,0.00320722]
[1643800085029,0.8675441,38533.0,38531.0,0.00453449]
[1643800086031,0.86687943,38533.0,38531.0,0.00320722]
[1643800086230,0.86687943,38533.0,38531.0,0.00453449]
[1643800087287,0.45008388,38533.0,38531.0,0.00320722]
[1643800087487,0.42,38533.0,38531.0,0.00453449]
[1643800087687,0.1759892,38539.0,38533.0,0.8636288]
[1643800087887,0.1759892,38542.0,38534.0,0.2568349]
[1643800088087,0.5719892,38543.0,38534.0,0.2568349]
[1643800088287,0.46723632,38541.0,38535.0,0.06488]
[1643800088688,0.46723632,38541.0,38536.0,0.25816208]
[1643800088689,0.20088,38541.0,38536.0,0.25816208]
[1643800088889,0.20088,38541.0,38536.0,0.00132718]
[1643800089088,0.349691,38540.0,38536.0,0.0014344]
[1643800089290,0.20088,38541.0,38536.0,0.0014344]
[1643800089491,0.349691,38540.0,38536.0,0.0014344]
[1643800089689,0.60655785,38540.0,38536.0,0.22088967]
[1643800089988,0.25686685,38540.0,38537.0,0.00118961]
[1643800090189,0.20088,38541.0,38537.0,0.00129683]
[1643800090389,0.349691,38540.0,38537.0,0.00129683]
[1643800090791,0.349691,38540.0,38537.0,0.00010722]
[1643800091041,0.349691,38540.0,38537.0,0.00118961]
[1643800091236,0.064883,38539.0,38537.0,0.00118961]
[1643800091436,0.029589,38538.0,38537.0,0.00118961]
[1643800092043,0.09994274,38536.0,38534.0,0.00010722]
[1643800092239,0.09994274,38536.0,38533.0,0.36373602]
[1643800093440,0.09994274,38536.0,38533.0,0.3649257]
[1643800094443,0.09994274,38536.0,38533.0,0.36373602]
[1643800094645,0.09994274,38536.0,38533.0,0.36495655]
[1643800095681,0.09994274,38536.0,38533.0,0.36373602]
[1643800095879,0.09994274,38536.0,38533.0,0.36495655]
[1643800096883,0.09994274,38536.0,38533.0,0.36373602]
[1643800097081,0.09994274,38536.0,38533.0,0.36495655]
[1643800097483,0.42,38539.0,38533.0,0.36495655]
[1643800098082,0.42,38539.0,38533.0,0.36373602]
[1643800098281,0.42,38539.0,38534.0,0.00121359]
[1643800098540,0.07578975,38536.0,38534.0,0.00132081]
[1643800099134,0.07578975,38536.0,38533.0,0.36373602]
[1643800099535,0.07578975,38536.0,38533.0,0.36494963]
[1643800100539,0.07578975,38536.0,38533.0,0.36444999]
[1643800101538,0.07578975,38536.0,38533.0,0.36373602]
[1643800101940,0.07578975,38536.0,38533.0,0.36495119]
[1643800102593,0.33516376,38536.0,38533.0,0.36495119]
[1643800102791,0.07578975,38536.0,38533.0,0.36373602]
[1643800102991,0.07578975,38536.0,38533.0,0.36495119]
[1643800104090,0.07578975,38536.0,38533.0,0.36373602]
[1643800104292,0.07578975,38536.0,38533.0,0.36495119]
[1643800105195,0.07578975,38536.0,38533.0,0.36373602]
[1643800105393,0.07578975,38536.0,38533.0,0.36494959]
[1643800105593,0.32643762,38536.0,38533.0,0.36494959]
[1643800105793,0.07578975,38536.0,38533.0,0.36494959]
[1643800106438,0.07578975,38536.0,38533.0,0.36373602]
[1643800106643,0.07578975,38536.0,38533.0,0.36494959]
[1643800106938,0.07578975,38536.0,38533.0,0.31494959]
[1643800107142,0.27829889,38534.0,38533.0,0.31494959]
[1643800107339,0.27829889,38534.0,38533.0,0.31484237]
[1643800107539,0.62798989,38534.0,38533.0,0.31484237]
[1643800107740,0.62798989,38534.0,38533.0,0.3136288]
[1643800109339,0.88540765,38534.0,38533.0,0.3136288]
[1643800110984,0.62798989,38534.0,38533.0,0.3136288]
[1643800111685,0.80397909,38534.0,38533.0,0.3136288]
[1643800111885,0.87850511,38534.0,38533.0,0.3136288]
[1643800112285,1.05449431,38534.0,38533.0,0.3136288]
[1643800112486,1.05459544,38534.0,38533.0,0.3136288]
[1643800114135,0.80397909,38534.0,38533.0,0.3136288]
[1643800114837,0.7873419,38534.0,38533.0,0.3136288]
[1643800115039,0.1759892,38534.0,38533.0,0.3136288]
[1643800115239,0.129781,38535.0,38533.0,0.3136288]
[1643800116039,0.06489,38535.0,38533.0,0.3136288]
[1643800116341,0.07578975,38536.0,38533.0,0.3636288]
[1643800116540,0.32461144,38536.0,38533.0,0.36373602]
[1643800116739,0.07578975,38536.0,38533.0,0.36373602]
[1643800117388,0.414581,38535.0,38533.0,0.31494892]
[1643800117587,0.414581,38535.0,38533.0,0.3148417]
[1643800118387,0.414581,38535.0,38533.0,0.3136288]
[1643800118587,0.464581,38535.0,38533.0,0.3136288]
[1643800119288,0.529474,38535.0,38533.0,0.3136288]
[1643800119488,0.25748415,38534.0,38533.0,0.3136288]
[1643800119688,0.28707315,38534.0,38533.0,0.3136288]
[1643800120089,0.029589,38534.0,38533.0,0.3136288]
[1643800120492,0.27873256,38534.0,38533.0,0.3136288]
[1643800120689,0.029589,38534.0,38533.0,0.3136288]
[1643800121740,0.279589,38534.0,38533.0,0.3136288]
[1643800125489,0.5401211,38534.0,38533.0,0.3136288]
[1643800126788,0.279589,38534.0,38533.0,0.3136288]
[1643800127188,0.53401847,38534.0,38533.0,0.3136288]
[1643800128188,0.53399048,38534.0,38533.0,0.3136288]
[1643800128637,0.53399048,38534.0,38533.0,0.31342382]
[1643800129238,0.68399048,38534.0,38533.0,0.31342382]
[1643800129436,0.429589,38534.0,38533.0,0.31342382]
[1643800129836,0.329589,38534.0,38533.0,0.31342382]
[1643800130640,0.629589,38534.0,38533.0,0.31342382]
[1643800131042,0.329589,38534.0,38533.0,0.31342382]
[1643800132615,0.579589,38534.0,38533.0,0.31342382]
[1643800134216,0.81940073,38534.0,38533.0,0.31342382]
[1643800134415,0.731789,38534.0,38533.0,0.31342382]
[1643800134617,0.9077782,38534.0,38533.0,0.31342382]
[1643800134816,0.731789,38534.0,38533.0,0.31342382]
[1643800135016,0.631789,38534.0,38533.0,0.31342382]
[1643800139235,0.579589,38534.0,38533.0,0.31342382]
[1643800141786,0.329589,38534.0,38533.0,0.31342382]
[1643800142187,0.62895247,38534.0,38533.0,0.31342382]
[1643800142588,0.629589,38534.0,38533.0,0.31342382]
[1643800143190,0.65,38533.0,38532.0,0.00253072]
[1643800143390,0.65,38533.0,38532.0,0.0024235]
[1643800143391,1.42095725,38533.0,38532.0,0.0024235]
[1643800143640,1.42095725,38533.0,38532.0,0.0011]
[1643800143641,1.71405545,38533.0,38532.0,0.0011]
[1643800144043,1.03345969,38532.0,38530.0,0.0011]
[1643800144242,0.681789,38531.0,38530.0,0.0011]
[1643800144439,0.97508174,38531.0,38530.0,0.0011]
[1643800144640,1.20107094,38531.0,38530.0,0.0011]
[1643800145139,0.9077782,38531.0,38530.0,0.0011]
[1643800145339,1.18806146,38531.0,38530.0,0.0011]
[1643800145541,1.25296846,38531.0,38530.0,0.0011]
[1643800146840,1.20296846,38531.0,38530.0,0.0011]
[1643800147042,1.25296846,38531.0,38530.0,0.0011]
[1643800147292,1.35296846,38531.0,38530.0,0.0011]
[1643800147490,0.06490553,38528.0,38521.0,0.1024]
[1643800147689,0.06490553,38528.0,38525.0,0.02040054]
[1643800147890,0.349691,38527.0,38519.0,0.05528888]
[1643800148189,0.06490553,38528.0,38519.0,0.00528888]
[1643800148391,0.2403042,38523.0,38519.0,0.05]
[1643800148590,0.51796527,38529.0,38519.0,0.05]
[1643800148890,0.51796527,38529.0,38522.0,0.00132203]
[1643800149091,0.064906,38527.0,38522.0,0.00132203]
[1643800149491,0.129812,38527.0,38522.0,0.00132203]
[1643800149691,0.22342826,38525.0,38519.0,0.05]
[1643800149890,0.22342826,38525.0,38523.0,0.00132202]
[1643800150091,0.1759892,38529.0,38523.0,0.00132202]
[1643800150390,0.349691,38528.0,38523.0,0.00132202]
[1643800150591,0.029589,38529.0,38523.0,0.00132202]
[1643800150790,0.48982043,38529.0,38520.0,0.0011]
[1643800151069,0.28274116,38526.0,38524.0,0.00132199]
[1643800151455,0.349691,38525.0,38524.0,0.00132199]
[1643800152056,0.349691,38525.0,38520.0,0.066006]
[1643800152354,0.28274116,38526.0,38520.0,0.066006]
[1643800152355,0.28274116,38526.0,38523.0,0.00132202]
[1643800152555,0.414238,38525.0,38523.0,0.00132202]
[1643800153255,0.414238,38525.0,38520.0,0.066006]
[1643800153457,0.064547,38525.0,38522.0,0.00132203]
[1643800154459,0.064547,38525.0,38520.0,0.066006]
[1643800154790,0.064547,38525.0,38522.0,0.00132203]
[1643800155591,0.064547,38525.0,38522.0,0.064904]
[1643800155790,0.064547,38525.0,38522.0,0.06622603]
[1643800156393,0.064547,38525.0,38522.0,0.00132203]
[1643800156792,0.064547,38525.0,38520.0,0.0011]
[1643800156995,0.07387196,38521.0,38520.0,0.0011]
[1643800157193,0.064903,38527.0,38520.0,0.0011]
[1643800157392,0.064903,38527.0,38520.0,0.22398938]
[1643800157594,0.08418923,38523.0,38520.0,0.27398938]
[1643800158192,0.08418923,38523.0,38520.0,0.05242207]
[1643800158393,0.08418923,38523.0,38520.0,0.00242207]
[1643800159237,0.08418923,38523.0,38520.0,0.0011]
[1643800159438,0.08418923,38523.0,38520.0,0.00252834]
[1643800159640,0.08418923,38523.0,38520.0,0.06743434]
[1643800160441,0.08418923,38523.0,38520.0,0.06611227]
[1643800160639,0.14909823,38523.0,38520.0,0.06743434]
[1643800160840,0.08418923,38523.0,38520.0,0.06743434]
[1643800161639,0.08418923,38523.0,38520.0,0.06611227]
[1643800161841,0.08418923,38523.0,38520.0,0.06743434]
[1643800162289,0.08418923,38523.0,38521.0,0.26872748]
[1643800162687,0.08418923,38523.0,38521.0,0.05]
[1643800168039,0.08418923,38523.0,38520.0,0.6131718]
[1643800168239,0.08418923,38523.0,38520.0,0.06743433]
[1643800168839,0.08418923,38523.0,38520.0,0.06611227]
[1643800169040,0.08418923,38523.0,38520.0,0.06743434]
[1643800170090,0.08418923,38523.0,38520.0,0.06611227]
[1643800170288,0.08418923,38523.0,38520.0,0.06682317]
[1643800171186,0.08418923,38523.0,38520.0,0.06611227]
[1643800171387,0.08418923,38523.0,38520.0,0.06743281]
[1643800172389,0.08418923,38523.0,38520.0,0.06611227]
[1643800172590,0.08418923,38523.0,38520.0,0.06243281]
[1643800172788,0.08418923,38523.0,38520.0,0.28077291]
[1643800172989,0.08418923,38523.0,38520.0,0.60917123]
[1643800173189,0.08418923,38523.0,38520.0,0.39083113]
[1643800173389,0.08418923,38523.0,38520.0,0.06243281]
[1643800173641,0.08418923,38523.0,38520.0,0.06111227]
[1643800173838,0.08418923,38523.0,38520.0,0.06243281]
[1643800174039,0.08418923,38523.0,38520.0,0.39083113]
[1643800174836,0.08418923,38523.0,38520.0,0.38951059]
[1643800175037,0.08418923,38523.0,38520.0,0.39083113]
[1643800176037,0.08418923,38523.0,38520.0,0.38951059]
[1643800176237,0.08418923,38523.0,38520.0,0.39083113]
[1643800177287,0.08418923,38523.0,38520.0,0.38951059]
[1643800177487,0.08418923,38523.0,38520.0,0.39083113]
[1643800178489,0.0838416,38523.0,38520.0,0.38951059]
[1643800178690,0.0838416,38523.0,38521.0,0.2606635]
[1643800178890,0.0838416,38523.0,38521.0,0.26076977]
[1643800179190,0.0838416,38523.0,38521.0,0.00010627]
[1643800179390,0.0838416,38523.0,38520.0,0.44083113]
[1643800179690,0.0838416,38523.0,38520.0,0.43951059]
[1643800179890,0.0838416,38523.0,38521.0,0.32839832]
[1643800180092,0.0838416,38523.0,38521.0,0.32850459]
[1643800183841,0.0838416,38523.0,38521.0,0.05010627]
[1643800184240,0.0838416,38523.0,38521.0,0.00010627]
[1643800184241,0.28105333,38522.0,38521.0,0.00010627]
[1643800184440,0.28105333,38522.0,38520.0,0.0011]
[1643800184640,0.28105333,38522.0,38520.0,0.00231449]
[1643800184890,0.0838416,38523.0,38520.0,0.00231449]
[1643800185090,0.36328325,38523.0,38520.0,0.00231449]
[1643800185291,0.0522,38522.0,38520.0,0.00231449]
[1643800185491,0.64421278,38521.0,38520.0,0.00231449]
[1643800185694,1.04610378,38521.0,38520.0,0.0011]
[1643800186093,0.87209298,38521.0,38520.0,0.00120627]
[1643800186492,0.69610378,38521.0,38520.0,0.00120627]
[1643800187092,0.69610378,38521.0,38520.0,0.0011]
[1643800187491,0.69610378,38521.0,38520.0,0.00120627]
[1643800188295,0.69610378,38521.0,38520.0,0.0011]
[1643800188543,0.79610378,38521.0,38520.0,0.0011]
[1643800188738,0.89610378,38521.0,38520.0,0.0011]
[1643800188937,0.89610378,38521.0,38520.0,0.00120627]
[1643800189538,0.89610378,38521.0,38520.0,0.0011]
[1643800189737,0.84610378,38521.0,38520.0,0.0011]
[1643800190138,0.84610378,38521.0,38520.0,0.00120627]
[1643800190738,0.84610378,38521.0,38520.0,0.0011]
[1643800191138,0.79610378,38521.0,38520.0,0.0011]
[1643800191339,0.79610378,38521.0,38520.0,0.00120627]
[1643800191739,0.84610378,38521.0,38520.0,0.00057245]
[1643800191939,0.84610378,38521.0,38520.0,0.00046618]
[1643800192589,0.84610378,38521.0,38520.0,0.00057245]
[1643800193190,0.84402894,38521.0,38520.0,0.00046618]
[1643800193792,0.84402894,38521.0,38520.0,0.00057245]
[1643800193990,0.81362495,38521.0,38520.0,0.00057245]
[1643800194490,0.81362495,38521.0,38520.0,0.00046618]
[1643800194891,0.81362495,38521.0,38520.0,0.00057245]
[1643800195492,0.81362495,38521.0,38520.0,0.00046618]
[1643800196143,0.81362495,38521.0,38520.0,0.00057245]
[1643800196741,0.81362495,38521.0,38520.0,0.00046618]
[1643800197241,0.81362495,38521.0,38520.0,0.00057245]
[1643800197442,0.65,38520.0,38517.0,0.069127]
[1643800197644,0.081789,38519.0,38517.0,0.0042]
[1643800197844,0.131789,38519.0,38517.0,0.0042]
[1643800198446,0.131789,38519.0,38512.0,0.0021]
[1643800198447,0.6,38517.0,38512.0,0.0021]
[1643800198649,0.064935,38515.0,38512.0,0.0021]
[1643800198945,0.081789,38514.0,38512.0,0.0021]
[1643800200005,0.081789,38514.0,38512.0,0.0521]
[1643800201200,0.0522,38514.0,38512.0,0.0521]
[1643800201401,0.349691,38513.0,38512.0,0.0521]
[1643800201815,0.32119534,38515.0,38512.0,0.0521]
[1643800201999,0.349691,38514.0,38512.0,0.0521]
[1643800202401,0.0522,38513.0,38512.0,0.0521]
[1643800202701,0.081789,38513.0,38512.0,0.0521]
[1643800203749,0.081789,38513.0,38512.0,0.0021]
[1643800205853,0.081789,38513.0,38509.0,0.116031]
[1643800205854,0.064936,38510.0,38503.0,0.0011]
[1643800206052,0.54470409,38509.0,38503.0,0.0011]
[1643800206252,0.01986589,38508.0,38503.0,0.0011]
[1643800206449,0.081789,38507.0,38503.0,0.0011]
[1643800206850,0.49073807,38504.0,38503.0,0.0011]
[1643800207051,0.09073807,38504.0,38503.0,0.0011]
[1643800207490,0.44042907,38504.0,38503.0,0.0011]
[1643800208091,0.5053784,38504.0,38503.0,0.0011]
[1643800208291,0.44042907,38504.0,38503.0,0.0011]
[1643800208893,0.49262907,38504.0,38503.0,0.0011]
[1643800212344,0.68010061,38503.0,38502.0,0.0010409]
[1643800212545,0.77464061,38503.0,38502.0,0.00114634]
[1643800213147,1.03298559,38503.0,38502.0,0.00114634]
[1643800213346,1.26136329,38503.0,38502.0,0.00010544]
[1643800213546,1.26136329,38503.0,38501.0,0.0121]
[1643800213747,0.60777105,38502.0,38501.0,0.0121]
[1643800213948,0.65997105,38502.0,38501.0,0.0121]
[1643800214150,0.65939072,38502.0,38501.0,0.0121]
[1643800214991,0.401891,38502.0,38501.0,0.0121]
[1643800215392,0.401891,38502.0,38501.0,0.01220544]
[1643800215993,0.401891,38502.0,38501.0,0.0121]
[1643800216593,0.401891,38502.0,38501.0,0.01220544]
[1643800216796,0.651891,38502.0,38501.0,0.01220544]
[1643800217194,0.651891,38502.0,38501.0,0.0121]
[1643800217396,0.90681968,38502.0,38501.0,0.0121]
[1643800217596,0.401891,38502.0,38501.0,0.0121]
[1643800217797,0.95903863,38502.0,38501.0,0.01220544]
[1643800218549,0.95903863,38502.0,38501.0,0.0121]
[1643800218942,0.701891,38502.0,38501.0,0.01220544]
[1643800219145,1.15222855,38502.0,38501.0,0.01220544]
[1643800219348,0.97604382,38502.0,38501.0,0.01220544]
[1643800219544,1.15222855,38502.0,38501.0,0.0121]
[1643800220145,1.15222855,38502.0,38501.0,0.01220544]
[1643800220845,1.15222855,38502.0,38501.0,0.0121]
[1643800221446,1.15222855,38502.0,38501.0,0.01220544]
[1643800221646,1.25222855,38502.0,38501.0,0.01220544]
[1643800222045,1.25222855,38502.0,38501.0,0.0121]
[1643800222490,1.25222855,38502.0,38501.0,0.01220544]
[1643800223190,1.25222855,38502.0,38501.0,0.0121]
[1643800223191,0.97807573,38502.0,38501.0,0.0121]
[1643800223592,0.67807573,38502.0,38501.0,0.01220544]
[1643800223991,0.501891,38502.0,38501.0,0.01220544]
[1643800224396,0.501891,38502.0,38501.0,0.0121]
[1643800224994,0.501891,38502.0,38501.0,0.01220544]
[1643800225395,0.67807573,38502.0,38501.0,0.01220544]
[1643800225594,0.67807573,38502.0,38501.0,0.0121]
[1643800225595,0.501891,38502.0,38501.0,0.0121]
[1643800226244,0.501891,38502.0,38501.0,0.01220544]
[1643800226446,0.67807573,38502.0,38501.0,0.01220544]
[1643800226645,0.501891,38502.0,38501.0,0.01220544]
[1643800226845,0.501891,38502.0,38501.0,0.0121]
[1643800227244,0.401891,38502.0,38501.0,0.0121]
[1643800227447,0.401891,38502.0,38501.0,0.01220544]
[1643800227645,0.651891,38502.0,38501.0,0.01220544]
[1643800228046,0.651891,38502.0,38501.0,0.0121]
[1643800228445,0.651891,38502.0,38501.0,0.01220544]
[1643800228645,0.401891,38502.0,38501.0,0.01220544]
[1643800229247,0.401891,38502.0,38501.0,0.0121]
[1643800229892,0.401891,38502.0,38501.0,0.01220544]
[1643800230892,0.349691,38502.0,38501.0,0.01220544]
[1643800231092,0.61100746,38502.0,38501.0,0.01220544]
[1643800231492,0.61100746,38502.0,38501.0,0.0121]
[1643800231693,0.349691,38502.0,38501.0,0.0121]
[1643800232092,0.349691,38502.0,38501.0,0.01220544]
[1643800232295,0.349121,38502.0,38501.0,0.01220544]
[1643800232693,0.349121,38502.0,38501.0,0.0121]
[1643800233093,0.60321763,38502.0,38501.0,0.0121]
[1643800233294,0.60321763,38502.0,38501.0,0.01220544]